[Event "SWE-ch 50 2019"]
[Site "Eskilstuna"]
[Date "2019.07.06"]
[Round "1.1"]
[White "Jonas, Gromark"]
[Black "Andersson, Kjell-Ake"]
[Result "*"]
[ECO "C00"]
[WhiteElo "1833"]
[BlackElo "1859"]
[Annotator "NA"]
[PlyCount "40"]
[EventDate "2019.07.06"]
[EventType "tourn"]
[EventCountry "SWE"]
[SourceTitle "playchess.com"]
[Source "ChessBase"]
[SourceQuality "1"]
[TimeControl "40/5400+30:1800+30"]

1. e4 {[%emt 0:00:00]} e6 {[%emt 0:00:01]} 2. d3 {[%emt 0:00:41]} d5 {[%emt 0:00:46]} 3. Nd2 {[%emt 0:00:39]} c5 {[%emt 0:00:23]} 4. Ngf3 {[%emt 0:01:20]} Nc6 {[%emt 0:00:34]} 5. g3 {[%emt 0:01:22]} Nf6 {[%emt 0:02:08]} 6. Bg2 {[%emt 0:00:51]} Be7 {[%emt 0:00:53]} 7. O-O {[%emt 0:00:45]} O-O {[%emt 0:00:10]} 8. Re1 {[%emt 0:03:08]} Bd7 {[%emt 0:02:08]} 9. e5 {[%emt 0:03:36]} Ne8 {[%emt 0:01:22]} 10. c3 {[%emt 0:06:27]} b5 {[%emt 0:03:53]} 11. d4 {[%emt 0:03:47]} c4 {[%emt 0:01:36]} 12. Nf1 {[%emt 0:09:11]} a5 {[%emt 0:04:37]} 13. h4 {[%emt 0:02:56]} Nc7 {[%emt 0:06:25]} 14. Bf4 {[%emt 0:02:55]} b4 {[%emt 0:03:02]} 15. h5 {[%emt 0:05:21]} Nb5 {[%emt 0:03:47]} 16. Qd2 {[%emt 0:04:23]} a4 {[%emt 0:04:53]} 17. Re3 {[%emt 0:04:43]} a3 {[%emt 0:05:43]} 18. Rb1 {[%emt 0:11:54]} axb2 {[%emt 0:04:18]} 19. Qxb2 {[%emt 0:05:05]} Nxc3 {[%emt 0:02:28]} 20. Ra1 {[%emt 0:02:06]} Ra3 {[%emt 0:02:47]} *

[Event "SWE-ch 50 2019"]
[Site "Eskilstuna"]
[Date "2019.07.08"]
[Round "3.1"]
[White "Eriksson, Mats"]
[Black "Andersson, Kjell-Ake"]
[Result "0-1"]
[ECO "C06"]
[WhiteElo "1961"]
[BlackElo "1859"]
[Annotator "NA"]
[PlyCount "64"]
[EventDate "2019.07.06"]
[EventType "tourn"]
[EventCountry "SWE"]
[SourceTitle "playchess.com"]
[Source "ChessBase"]
[SourceQuality "1"]
[TimeControl "40/5400+30:1800+30"]

1. e4 {[%emt 0:00:00]} e6 {[%emt 0:00:07]} 2. d4 {[%emt 0:00:17]} d5 {[%emt 0:00:12]} 3. Nd2 {[%emt 0:00:44]} Nf6 {[%emt 0:00:44]} 4. e5 {[%emt 0:00:38]} Nfd7 {[%emt 0:00:11]} 5. Bd3 {[%emt 0:01:57]} c5 {[%emt 0:01:38]} 6. c3 {[%emt 0:00:33]} Nc6 {[%emt 0:00:25]} 7. Ne2 {[%emt 0:01:04]} Qb6 {[%emt 0:00:32]} 8. Nf3 {[%emt 0:01:44]} cxd4 {[%emt 0:00:21]} 9. cxd4 {[%emt 0:00:31]} f6 {[%emt 0:00:08]} 10. exf6 {[%emt 0:01:13]} Nxf6 {[%emt 0:00:07]} 11. O-O {[%emt 0:01:35]} Bd6 {[%emt 0:04:13]} 12. Bd2 {[%emt 0:01:42]} O-O {[%emt 0:03:07]} 13. Bc3 {[%emt 0:01:04]} Bd7 {[%emt 0:01:28]} 14. Rc1 {[%emt 0:10:42]} Rae8 {[%emt 0:01:47]} 15. Qd2 {[%emt 0:14:22]} Qc7 {[%emt 0:05:26]} 16. b4 {[%emt 0:07:44]} Qb8 {[%emt 0:06:53]} 17. b5 {[%emt 0:03:49]} Ne7 {[%emt 0:13:18]} 18. a4 {[%emt 0:05:53]} Ng4 {[%emt 0:05:25]} 19. h3 {[%emt 0:14:21]} Rxf3 {[%emt 0:01:49]} 20. hxg4 {[%emt 0:00:15]} Rf6 {[%emt 0:02:47]} 21. g5 {[%emt 0:04:35]} Rf7 {[%emt 0:02:17]} 22. Qe3 {[%emt 0:05:49]} Nf5 {[%emt 0:02:27]} 23. Qh3 {[%emt 0:01:28]} g6 {[%emt 0:02:09]} 24. g3 {[%emt 0:02:44]} e5 {[%emt 0:04:10]} 25. g4 {[%emt 0:01:58]} e4 {[%emt 0:03:04]} 26. Bc2 {[%emt 0:00:58]} Ng7 {[%emt 0:01:04]} 27. Bb3 {[%emt 0:01:21]} Be6 {[%emt 0:02:03]} 28. Ng3 {[%emt 0:03:17]} Bf4 {[%emt 0:02:15]} 29. Rce1 {[%emt 0:02:41]} Bxg5 {[%emt 0:02:17]} 30. f3 {[%emt 0:02:37]} e3 {[%emt 0:02:04]} 31. Ne2 {[%emt 0:02:49]} Nh5 {[%emt 0:02:04]} 32. Qh2 {[%emt 0:01:43]} Qxh2+ {[%emt 0:01:50]} 0-1

[Event "SWE-ch 50 2019"]
[Site "Eskilstuna"]
[Date "2019.07.13"]
[Round "8.4"]
[White "Gajic, Zoran"]
[Black "Lagerborg, Krister"]
[Result "0-1"]
[ECO "A48"]
[WhiteElo "1936"]
[BlackElo "2129"]
[Annotator "NA"]
[PlyCount "46"]
[EventDate "2019.07.06"]
[EventType "tourn"]
[EventCountry "SWE"]
[SourceTitle "playchess.com"]
[Source "ChessBase"]
[SourceQuality "1"]
[TimeControl "40/5400+30:1800+30"]

1. d4 {[%emt 0:00:00]} Nf6 {[%emt 0:00:00]} 2. Nf3 {[%emt 0:00:00]} g6 {[%emt 0:00:00]} 3. Bg5 {[%emt 0:00:00]} Bg7 {[%emt 0:00:01]} 4. Nbd2 {[%emt 0:00:00]} d6 {[%emt 0:01:34]} 5. c3 {[%emt 0:00:41]} c6 {[%emt 0:00:45]} 6. e4 {[%emt 0:00:07]} Qc7 {[%emt 0:00:38]} 7. Bc4 {[%emt 0:01:59]} e5 {[%emt 0:04:19]} 8. dxe5 {[%emt 0:03:29]} dxe5 {[%emt 0:00:03]} 9. Qe2 {[%emt 0:00:27]} Nbd7 {[%emt 0:02:22]} 10. h3 {[%emt 0:03:20]} b5 {[%emt 0:02:31]} 11. Bb3 {[%emt 0:00:18]} Nc5 {[%emt 0:00:42]} 12. Bc2 {[%emt 0:00:31]} O-O {[%emt 0:01:42]} 13. a4 {[%emt 0:01:45]} a6 {[%emt 0:02:15]} 14. axb5 {[%emt 0:00:23]} cxb5 {[%emt 0:00:09]} 15. O-O {[%emt 0:00:31]} Bb7 {[%emt 0:01:10]} 16. Qe3 {[%emt 0:04:20]} Rfe8 {[%emt 0:01:52]} 17. Rfe1 {[%emt 0:06:07]} Rad8 {[%emt 0:01:33]} 18. Nf1 {[%emt 0:12:42]} Qc6 {[%emt 0:05:55]} 19. Ng3 {[%emt 0:00:11]} Qc7 {[%emt 0:07:20]} 20. h4 {[%emt 0:03:10]} h5 {[%emt 0:05:10]} 21. Bh6 {[%emt 0:01:02]} Ng4 {[%emt 0:00:42]} 22. Bg5 {[%emt 0:00:43]} Nf6 {[%emt 0:00:06]} 23. Bxf6 {[%emt 0:00:06]} Bxf6 {[%emt 0:00:02]} 0-1

[Event "SWE-ch 50 2019"]
[Site "Eskilstuna"]
[Date "2019.07.14"]
[Round "9.3"]
[White "Lagerborg, Krister"]
[Black "Adolfsson, Kjell"]
[Result "1-0"]
[ECO "B00"]
[WhiteElo "2129"]
[BlackElo "1895"]
[Annotator "ChessBase"]
[PlyCount "99"]
[EventDate "2019.07.06"]
[EventType "tourn"]
[EventCountry "SWE"]
[SourceTitle "playchess.com"]
[Source "ChessBase"]
[SourceQuality "1"]
[TimeControl "40/5400+30:1800+30"]

1. e4 {[%emt 0:00:00]} b6 {[%emt 0:00:00]} 2. f4 {[%emt 0:00:54]} Bb7 {[%emt 0:00:17]} 3. d3 {[%emt 0:00:19]} e6 {[%emt 0:00:44]} 4. Nf3 {[%emt 0:00:37]} d6 {[%emt 0:02:37]} 5. g3 {[%emt 0:00:31]} Nd7 {[%emt 0:00:29]} 6. Bg2 {[%emt 0:00:26]} Be7 {[%emt 0:02:19]} 7. O-O {[%emt 0:00:48]} c5 {[%emt 0:04:27]} 8. Qe2 {[%emt 0:01:15]} Qc7 {[%emt 0:01:46]} 9. c3 {[%emt 0:01:17]} Ngf6 {[%emt 0:11:23]} 10. Nbd2 {[%emt 0:02:24]} O-O {[%emt 0:05:33]} 11. h3 {[%emt 0:03:40]} h6 {[%emt 0:08:57]} 12. g4 {[%emt 0:03:55]} Nh7 {[%emt 0:04:50]} 13. Rf2 {[%emt 0:06:20]} e5 {[%emt 0:09:44]} 14. f5 {[%emt 0:03:55]} g5 {[%emt 0:06:40]} 15. c4 {[%emt 0:03:09]} Nb8 {[%emt 0:09:51]} 16. Nf1 {[%emt 0:02:29]} f6 {[%emt 0:03:29]} 17. Ne3 {[%emt 0:05:10]} Bd8 {[%emt 0:05:19]} 18. Nd2 {[%emt 0:03:13]} Nc6 {[%emt 0:01:13]} 19. Nb1 {[%emt 0:02:08]} Nd4 {[%emt 0:03:34]} 20. Qd1 {[%emt 0:00:15]} Qd7 {[%emt 0:01:41]} 21. Nc3 {[%emt 0:00:58]} Rf7 {[%emt 0:00:38]} 22. Ned5 {[%emt 0:02:04]} Bc6 {[%emt 0:00:27]} 23. Be3 {[%emt 0:04:35]} Qe8 24. Bf3 {[%emt 0:07:23]} Rb7 {[%emt 0:03:13]} 25. Qd2 {[%emt 0:02:08]} a6 {[%emt 0:00:31]} 26. Kg2 {[%emt 0:04:20]} b5 27. Ne2 {[%emt 0:00:00]} Rab8 {[%emt 0:05:57]} 28. cxb5 {[%emt 0:03:16]} Rxb5 {[%emt 0:03:56]} 29. Bxd4 {[%emt 0:00:48]} exd4 {[%emt 0:00:00]} 30. b3 {[%emt 0:03:49]} Ba5 {[%emt 0:00:00]} 31. Qc2 {[%emt 0:01:26]} R5b7 {[%emt 0:00:00]} 32. Qc4 {[%emt 0:03:16]} Qf7 {[%emt 0:00:00]} 33. Qxa6 {[%emt 0:03:08]} Bxd5 {[%emt 0:00:27]} 34. exd5 {[%emt 0:02:30]} Bc7 {[%emt 0:00:53]} 35. Ng3 {[%emt 0:01:46]} Rb6 {[%emt 0:01:20]} 36. Qc4 {[%emt 0:01:03]} Nf8 {[%emt 0:00:07]} 37. Be4 {[%emt 0:01:34]} Nd7 {[%emt 0:00:21]} 38. Qc2 {[%emt 0:00:56]} R6b7 {[%emt 0:01:47]} 39. Qe2 {[%emt 0:01:31]} Ra7 {[%emt 0:01:04]} 40. Rh1 {[%emt 0:02:39]} Ra3 {[%emt 0:01:23]} 41. h4 {[%emt 0:30:37]} Rba8 {[%emt 0:31:45]} 42. hxg5 {[%emt 0:00:19]} hxg5 {[%emt 0:00:00]} 43. Kg1 {[%emt 0:00:00]} Ne5 {[%emt 0:00:00]} 44. Rfh2 {[%emt 0:00:00]} Qg7 {[%emt 0:00:00]} 45. Nf1 {[%emt 0:00:00]} Rxa2 {[%emt 0:00:00]} 46. Qxa2 {[%emt 0:00:00]} Rxa2 {[%emt 0:00:00]} 47. Rxa2 {[%emt 0:00:00]} Nxg4 {[%emt 0:00:00]} 48. Ra8+ {[%emt 0:00:00]} Kf7 {[%emt 0:00:00]} 49. Rah8 {[%emt 0:00:00]} Ne5 {[%emt 0:01:02]} 50. R8h2 1-0